[Event "19th IPCA WCC 2019"]
[Site "Ruzomberok"]
[Date "2019.07.06"]
[Round "9.6"]
[White "Lipilin, Ilia"]
[Black "Jurkiewicz, Krzysztof"]
[Result "1-0"]
[ECO "E73"]
[WhiteElo "2084"]
[BlackElo "2007"]
[Annotator "NA"]
[PlyCount "125"]
[EventDate "2019.06.28"]
[EventType "swiss"]
[EventCountry "SVK"]
[SourceTitle "playchess.com"]
[Source "ChessBase"]
[SourceQuality "1"]
[TimeControl "5400+30"]

1. d4 {[%emt 0:00:00]} Nf6 {[%emt 0:00:00]} 2. c4 {[%emt 0:00:00]} g6 {[%emt 0:00:00]} 3. Nc3 {[%emt 0:00:00]} Bg7 {[%emt 0:00:00]} 4. e4 {[%emt 0:00:00]} d6 {[%emt 0:00:00]} 5. Be2 {[%emt 0:00:07]} O-O {[%emt 0:00:00]} 6. Bg5 {[%emt 0:00:07]} c5 {[%emt 0:01:01]} 7. d5 {[%emt 0:00:10]} h6 {[%emt 0:03:24]} 8. Bf4 {[%emt 0:00:10]} b5 {[%emt 0:04:28]} 9. cxb5 {[%emt 0:00:12]} a6 {[%emt 0:00:01]} 10. a4 {[%emt 0:00:03]} axb5 {[%emt 0:11:21]} 11. Bxb5 {[%emt 0:00:14]} Ba6 {[%emt 0:01:06]} 12. Nf3 {[%emt 0:08:13]} Nbd7 {[%emt 0:06:53]} 13. O-O {[%emt 0:00:14]} Qb6 {[%emt 0:02:09]} 14. Nd2 {[%emt 0:03:00]} Ra7 {[%emt 0:02:19]} 15. Nc4 {[%emt 0:02:39]} Qc7 {[%emt 0:03:41]} 16. Qe2 {[%emt 0:07:45]} Rfa8 {[%emt 0:03:05]} 17. Bc6 {[%emt 0:08:19]} Nh5 {[%emt 0:02:23]} 18. Bd2 {[%emt 0:01:27]} Ne5 {[%emt 0:02:32]} 19. Bb5 {[%emt 0:03:28]} Nxc4 {[%emt 0:03:38]} 20. Qxc4 {[%emt 0:00:10]} Nf6 {[%emt 0:07:35]} 21. Bxa6 {[%emt 0:03:03]} Rxa6 {[%emt 0:00:17]} 22. Nb5 {[%emt 0:00:04]} Qb8 {[%emt 0:02:35]} 23. Bc3 {[%emt 0:00:26]} Nd7 {[%emt 0:02:13]} 24. Bxg7 {[%emt 0:03:56]} Kxg7 {[%emt 0:00:02]} 25. b3 {[%emt 0:01:01]} Kg8 {[%emt 0:00:10]} 26. Rab1 {[%emt 0:02:02]} Qd8 {[%emt 0:02:36]} 27. Qc1 {[%emt 0:02:08]} Kg7 {[%emt 0:02:32]} 28. Qc3+ {[%emt 0:00:18]} Kh7 {[%emt 0:01:46]} 29. Rbe1 {[%emt 0:03:35]} Rc8 {[%emt 0:03:36]} 30. Na3 {[%emt 0:01:25]} Rb6 {[%emt 0:01:07]} 31. f4 {[%emt 0:02:10]} Rb4 {[%emt 0:00:23]} 32. Nc2 {[%emt 0:02:08]} Rb7 {[%emt 0:01:26]} 33. Na3 {[%emt 0:04:58]} Qb6 {[%emt 0:04:56]} 34. Nb5 {[%emt 0:00:42]} c4+ {[%emt 0:01:17]} 35. Kh1 {[%emt 0:00:06]} Qc5 {[%emt 0:00:33]} 36. b4 {[%emt 0:01:28]} Qb6 {[%emt 0:00:40]} 37. Rb1 {[%emt 0:04:30]} Nf6 {[%emt 0:00:53]} 38. Rfe1 {[%emt 0:03:36]} Ra8 {[%emt 0:03:05]} 39. Ra1 {[%emt 0:01:39]} Ng4 {[%emt 0:00:16]} 40. h3 {[%emt 0:00:24]} Nf2+ {[%emt 0:00:49]} 41. Kh2 {[%emt 0:00:05]} Nd3 {[%emt 0:00:52]} 42. Rf1 {[%emt 0:00:39]} Rxa4 {[%emt 0:02:08]} 43. Rxa4 {[%emt 0:00:56]} Qxb5 {[%emt 0:00:01]} 44. Ra8 {[%emt 0:00:27]} f6 {[%emt 0:00:20]} 45. Rc8 {[%emt 0:00:13]} Qxb4 {[%emt 0:02:41]} 46. Qxc4 {[%emt 0:00:12]} Qd2 {[%emt 0:01:01]} 47. Qc2 {[%emt 0:01:07]} Qxc2 {[%emt 0:02:13]} 48. Rxc2 {[%emt 0:00:03]} Rb4 {[%emt 0:00:54]} 49. e5 {[%emt 0:03:06]} Nxf4 {[%emt 0:00:43]} 50. exd6 {[%emt 0:00:12]} exd6 {[%emt 0:00:30]} 51. Rc7+ {[%emt 0:00:06]} Kg8 {[%emt 0:00:40]} 52. Ra1 {[%emt 0:00:07]} Rb8 {[%emt 0:00:37]} 53. Raa7 {[%emt 0:00:10]} g5 {[%emt 0:00:48]} 54. Rg7+ {[%emt 0:00:14]} Kh8 {[%emt 0:00:42]} 55. Rgd7 {[%emt 0:01:27]} Nxd5 {[%emt 0:00:44]} 56. Rxd6 {[%emt 0:00:10]} Nf4 {[%emt 0:01:01]} 57. Rxf6 {[%emt 0:00:09]} h5 {[%emt 0:00:24]} 58. h4 {[%emt 0:01:14]} Re8 {[%emt 0:04:01]} 59. hxg5 {[%emt 0:01:38]} Ne6 {[%emt 0:00:42]} 60. Rh6+ {[%emt 0:00:10]} Kg8 {[%emt 0:00:01]} 61. g6 {[%emt 0:01:05]} Rc8 {[%emt 0:01:57]} 62. g7 {[%emt 0:00:16]} Rc7 {[%emt 0:00:29]} 63. Ra8+ {[%emt 0:00:14]} 1-0

[Event "19th IPCA WCC 2019"]
[Site "Ruzomberok"]
[Date "2019.07.06"]
[Round "9.7"]
[White "Kovacevic, Krsto"]
[Black "Gedgafov, Chamal"]
[Result "1-0"]
[ECO "C00"]
[WhiteElo "2049"]
[BlackElo "2163"]
[Annotator "NA"]
[PlyCount "91"]
[EventDate "2019.06.28"]
[EventType "swiss"]
[EventCountry "SVK"]
[SourceTitle "playchess.com"]
[Source "ChessBase"]
[SourceQuality "1"]
[TimeControl "5400+30"]

1. e4 {[%emt 0:00:00]} e6 {[%emt 0:00:00]} 2. d3 {[%emt 0:00:00]} c5 {[%emt 0:00:00]} 3. Nf3 {[%emt 0:00:00]} Nc6 {[%emt 0:00:00]} 4. g3 {[%emt 0:00:07]} d6 {[%emt 0:00:07]} 5. Bg2 {[%emt 0:00:12]} Nf6 {[%emt 0:00:10]} 6. O-O {[%emt 0:00:11]} Be7 {[%emt 0:00:09]} 7. c3 {[%emt 0:00:12]} O-O {[%emt 0:00:11]} 8. Re1 {[%emt 0:00:48]} Qc7 {[%emt 0:00:23]} 9. d4 {[%emt 0:04:11]} e5 {[%emt 0:00:20]} 10. h3 {[%emt 0:01:58]} Rb8 {[%emt 0:00:52]} 11. a4 {[%emt 0:02:20]} a6 {[%emt 0:00:55]} 12. Na3 {[%emt 0:14:11]} b5 {[%emt 0:02:38]} 13. axb5 {[%emt 0:00:26]} axb5 {[%emt 0:00:09]} 14. d5 {[%emt 0:14:50]} Na5 {[%emt 0:00:59]} 15. b4 {[%emt 0:00:20]} cxb4 {[%emt 0:01:13]} 16. cxb4 {[%emt 0:00:17]} Nc4 {[%emt 0:00:13]} 17. Bf1 {[%emt 0:04:55]} Bd7 {[%emt 0:00:47]} 18. Qb3 {[%emt 0:01:19]} Rfc8 {[%emt 0:02:26]} 19. Bg5 {[%emt 0:02:04]} Qd8 {[%emt 0:09:16]} 20. Bxf6 {[%emt 0:04:25]} Bxf6 {[%emt 0:00:50]} 21. Kg2 {[%emt 0:00:47]} Nxa3 {[%emt 0:01:40]} 22. Rxa3 {[%emt 0:00:21]} Rc7 {[%emt 0:01:33]} 23. Qe3 {[%emt 0:20:18]} g6 {[%emt 0:02:21]} 24. Raa1 {[%emt 0:03:56]} Rbc8 {[%emt 0:02:57]} 25. Rec1 {[%emt 0:01:58]} Bg7 {[%emt 0:02:06]} 26. Rxc7 {[%emt 0:08:26]} Qxc7 {[%emt 0:05:12]} 27. Ra7 {[%emt 0:00:10]} Qd8 {[%emt 0:00:32]} 28. Rb7 {[%emt 0:00:11]} Rb8 {[%emt 0:03:10]} 29. Qa7 {[%emt 0:00:23]} Bxh3+ {[%emt 0:00:22]} 30. Kxh3 {[%emt 0:01:12]} Ra8 {[%emt 0:02:10]} 31. Qb6 {[%emt 0:00:35]} Qc8+ {[%emt 0:00:46]} 32. Kg2 {[%emt 0:00:14]} Qc2 {[%emt 0:01:47]} 33. Rb8+ {[%emt 0:03:39]} Rxb8 {[%emt 0:00:05]} 34. Qxb8+ {[%emt 0:00:05]} Bf8 {[%emt 0:00:04]} 35. Qxb5 {[%emt 0:00:20]} Qxe4 {[%emt 0:00:20]} 36. Qc4 {[%emt 0:00:11]} Qxc4 {[%emt 0:00:50]} 37. Bxc4 {[%emt 0:00:08]} Be7 {[%emt 0:00:04]} 38. Nd2 {[%emt 0:06:13]} f5 {[%emt 0:00:43]} 39. Bb5 {[%emt 0:01:10]} e4 {[%emt 0:02:22]} 40. Bc6 {[%emt 0:00:16]} Kf7 {[%emt 0:03:12]} 41. Nc4 {[%emt 0:00:31]} Bf6 {[%emt 0:00:49]} 42. b5 {[%emt 0:01:28]} Bd4 {[%emt 0:00:16]} 43. Nxd6+ {[%emt 0:00:39]} Kf6 {[%emt 0:00:22]} 44. Nc8 {[%emt 0:01:01]} g5 {[%emt 0:00:25]} 45. d6 {[%emt 0:00:48]} Ke6 {[%emt 0:00:13]} 46. d7 {[%emt 0:00:20]} 1-0

[Event "19th IPCA WCC 2019"]
[Site "Ruzomberok"]
[Date "2019.07.06"]
[Round "9.8"]
[White "Alekseev, Mikhail"]
[Black "Obodchuk, Andrei"]
[Result "0-1"]
[ECO "A85"]
[WhiteElo "1869"]
[BlackElo "2316"]
[Annotator "NA"]
[PlyCount "96"]
[EventDate "2019.06.28"]
[EventType "swiss"]
[EventCountry "SVK"]
[SourceTitle "playchess.com"]
[Source "ChessBase"]
[SourceQuality "1"]
[TimeControl "5400+30"]

1. d4 {[%emt 0:00:00]} f5 {[%emt 0:00:00]} 2. c4 {[%emt 0:01:47]} Nf6 {[%emt 0:00:00]} 3. Nc3 {[%emt 0:00:14]} e6 {[%emt 0:00:00]} 4. g3 {[%emt 0:01:12]} Bb4 {[%emt 0:00:20]} 5. Bg2 {[%emt 0:01:04]} O-O {[%emt 0:00:13]} 6. Nh3 {[%emt 0:01:24]} Bxc3+ {[%emt 0:00:24]} 7. bxc3 {[%emt 0:00:17]} d6 {[%emt 0:00:08]} 8. O-O {[%emt 0:01:59]} Qe7 {[%emt 0:00:23]} 9. Nf4 {[%emt 0:04:46]} Nc6 {[%emt 0:07:44]} 10. c5 {[%emt 0:04:50]} d5 {[%emt 0:14:22]} 11. h4 {[%emt 0:02:57]} Ne4 {[%emt 0:02:00]} 12. c4 {[%emt 0:01:58]} dxc4 {[%emt 0:00:54]} 13. Bxe4 {[%emt 0:04:31]} fxe4 {[%emt 0:00:05]} 14. Qc2 {[%emt 0:00:40]} Nxd4 {[%emt 0:07:10]} 15. Qxc4 {[%emt 0:01:33]} Nc6 {[%emt 0:00:46]} 16. Bb2 {[%emt 0:03:21]} Rxf4 {[%emt 0:08:16]} 17. gxf4 {[%emt 0:00:11]} Qxh4 {[%emt 0:00:03]} 18. Qc3 {[%emt 0:02:32]} e5 {[%emt 0:00:26]} 19. fxe5 {[%emt 0:08:24]} Be6 {[%emt 0:06:16]} 20. Qg3 {[%emt 0:03:37]} Qh5 {[%emt 0:00:04]} 21. f3 {[%emt 0:04:53]} e3 {[%emt 0:00:13]} 22. Kg2 {[%emt 0:02:09]} Rf8 {[%emt 0:02:35]} 23. Rh1 {[%emt 0:00:40]} Qf5 {[%emt 0:00:11]} 24. Rac1 {[%emt 0:14:52]} Ne7 {[%emt 0:00:11]} 25. Qg4 {[%emt 0:03:30]} Qxg4+ {[%emt 0:01:07]} 26. fxg4 {[%emt 0:00:31]} Bd5+ {[%emt 0:00:12]} 27. Kg3 {[%emt 0:00:34]} Bxh1 {[%emt 0:00:03]} 28. Rxh1 {[%emt 0:00:13]} Nc6 {[%emt 0:02:06]} 29. Rd1 {[%emt 0:01:16]} Rd8 {[%emt 0:05:31]} 30. Rxd8+ {[%emt 0:07:28]} Nxd8 {[%emt 0:00:02]} 31. Bc1 {[%emt 0:00:58]} Kf7 {[%emt 0:00:13]} 32. Bxe3 {[%emt 0:01:24]} Ke6 {[%emt 0:00:08]} 33. Kf4 {[%emt 0:00:52]} Nc6 {[%emt 0:00:54]} 34. Ke4 {[%emt 0:00:46]} Nxe5 {[%emt 0:00:13]} 35. Bd4 {[%emt 0:01:58]} Nxg4 {[%emt 0:00:19]} 36. Bxg7 {[%emt 0:00:10]} Nf6+ {[%emt 0:00:34]} 37. Kf3 {[%emt 0:03:17]} Kf5 {[%emt 0:01:38]} 38. Bh6 {[%emt 0:01:36]} c6 {[%emt 0:00:37]} 39. Be3 {[%emt 0:02:34]} Ke5 {[%emt 0:01:08]} 40. Bg5 {[%emt 0:01:03]} Ne4 {[%emt 0:03:25]} 41. Be7 {[%emt 0:00:42]} h5 {[%emt 0:01:23]} 42. Bf8 {[%emt 0:01:44]} Kd5 {[%emt 0:01:44]} 43. Kf4 {[%emt 0:01:10]} Nxc5 {[%emt 0:02:03]} 44. Kf5 {[%emt 0:01:15]} Ne4 {[%emt 0:00:16]} 45. Bg7 {[%emt 0:01:14]} Ng3+ {[%emt 0:00:25]} 46. Kg5 {[%emt 0:00:13]} Nxe2 {[%emt 0:00:04]} 47. Kxh5 {[%emt 0:00:13]} c5 {[%emt 0:00:08]} 48. Kg4 {[%emt 0:00:31] Ke5} Ke4 {[%emt 0:00:06]} 0-1

[Event "19th IPCA WCC 2019"]
[Site "Ruzomberok"]
[Date "2019.07.06"]
[Round "9.9"]
[White "Juvan, Jaka"]
[Black "Gerasimova, Svetlana"]
[Result "1-0"]
[ECO "B38"]
[WhiteElo "2168"]
[BlackElo "1913"]
[Annotator "NA"]
[PlyCount "103"]
[EventDate "2019.06.28"]
[EventType "swiss"]
[EventCountry "SVK"]
[SourceTitle "playchess.com"]
[Source "ChessBase"]
[SourceQuality "1"]
[TimeControl "5400+30"]

1. e4 {[%emt 0:00:00]} c5 {[%emt 0:00:00]} 2. Nf3 {[%emt 0:00:00]} Nc6 {[%emt 0:00:00]} 3. d4 {[%emt 0:00:00]} cxd4 {[%emt 0:00:00]} 4. Nxd4 {[%emt 0:00:00]} g6 {[%emt 0:00:00]} 5. c4 {[%emt 0:00:03]} Bg7 {[%emt 0:00:13]} 6. Be3 {[%emt 0:00:02]} Nh6 {[%emt 0:00:41]} 7. Nc3 {[%emt 0:00:26]} O-O {[%emt 0:01:35]} 8. Be2 {[%emt 0:01:50]} d6 {[%emt 0:00:19]} 9. O-O {[%emt 0:00:08]} f5 {[%emt 0:00:17]} 10. exf5 {[%emt 0:01:43]} Nxf5 {[%emt 0:04:07]} 11. Nxf5 {[%emt 0:02:25]} Bxf5 {[%emt 0:01:25]} 12. Qd2 {[%emt 0:00:08]} Rc8 {[%emt 0:17:49]} 13. Rfd1 {[%emt 0:02:16]} Qa5 {[%emt 0:04:47]} 14. Rac1 {[%emt 0:00:39]} Rf7 {[%emt 0:13:52]} 15. a3 {[%emt 0:11:39]} Ne5 {[%emt 0:13:08]} 16. Nb5 {[%emt 0:21:00]} Qxd2 {[%emt 0:00:37]} 17. Rxd2 {[%emt 0:00:10]} a6 {[%emt 0:00:20]} 18. Nd4 {[%emt 0:00:44]} Bd7 {[%emt 0:02:02]} 19. h3 {[%emt 0:00:07]} b5 {[%emt 0:02:50]} 20. c5 {[%emt 0:15:14]} dxc5 {[%emt 0:03:50]} 21. Nf3 {[%emt 0:00:02]} Nxf3+ {[%emt 0:00:41]} 22. Bxf3 {[%emt 0:00:03]} Bxh3 {[%emt 0:10:18]} 23. Bb7 {[%emt 0:00:22]} Rb8 {[%emt 0:00:20]} 24. Bxa6 {[%emt 0:00:03]} Rb6 {[%emt 0:03:44]} 25. gxh3 {[%emt 0:01:45]} Rxa6 {[%emt 0:00:12]} 26. Rxc5 {[%emt 0:00:02]} Rf5 {[%emt 0:00:59]} 27. Rd8+ {[%emt 0:14:37]} Kf7 {[%emt 0:00:47]} 28. Rxf5+ {[%emt 0:00:25]} gxf5 {[%emt 0:00:08]} 29. Bd4 {[%emt 0:00:01]} Bxd4 {[%emt 0:02:26]} 30. Rxd4 {[%emt 0:00:02]} Rb6 {[%emt 0:00:05]} 31. Rb4 {[%emt 0:00:19]} Ke8 {[%emt 0:03:11]} 32. f4 {[%emt 0:05:56]} Kd7 {[%emt 0:00:30]} 33. Kf2 {[%emt 0:02:17]} Kc6 {[%emt 0:01:13]} 34. Rb3 {[%emt 0:02:23]} Rb7 {[%emt 0:01:26]} 35. Re3 {[%emt 0:06:17]} Kd6 {[%emt 0:01:40]} 36. Rb3 {[%emt 0:01:27]} Kc6 {[%emt 0:00:43]} 37. Ke3 {[%emt 0:01:02]} e6 {[%emt 0:02:26]} 38. Kd4 {[%emt 0:00:17]} Kd6 {[%emt 0:01:52]} 39. Rb4 {[%emt 0:00:52]} Kc6 {[%emt 0:01:05]} 40. Ke5 {[%emt 0:00:08]} Rg7 {[%emt 0:01:50]} 41. Kxe6 {[%emt 0:00:44]} Rg3 {[%emt 0:00:07]} 42. h4 {[%emt 0:00:23]} Rh3 {[%emt 0:00:24]} 43. Kxf5 {[%emt 0:00:02]} Rxh4 {[%emt 0:00:08]} 44. Kg5 {[%emt 0:00:10]} Rh2 {[%emt 0:00:21]} 45. f5 {[%emt 0:00:42]} h5 {[%emt 0:00:39]} 46. f6 {[%emt 0:00:12]} Kd6 {[%emt 0:00:50]} 47. Rxb5 {[%emt 0:02:12]} h4 {[%emt 0:00:07]} 48. Rf5 {[%emt 0:00:13]} h3 {[%emt 0:01:25]} 49. f7 {[%emt 0:00:05]} Rg2+ {[%emt 0:01:15]} 50. Kh4 {[%emt 0:00:02]} h2 {[%emt 0:00:30]} 51. f8=Q+ {[%emt 0:00:07]} Ke6 {[%emt 0:00:24]} 52. Qf7+ {[%emt 0:00:07]} 1-0

[Event "19th IPCA WCC 2019"]
[Site "Ruzomberok"]
[Date "2019.07.06"]
[Round "9.10"]
[White "Kaydanovich, Marina"]
[Black "Glazar, Domagoj"]
[Result "0-1"]
[ECO "A61"]
[WhiteElo "1760"]
[BlackElo "2153"]
[Annotator "NA"]
[PlyCount "92"]
[EventDate "2019.06.28"]
[EventType "swiss"]
[EventCountry "SVK"]
[SourceTitle "playchess.com"]
[Source "ChessBase"]
[SourceQuality "1"]
[TimeControl "5400+30"]

1. d4 {[%emt 0:00:00]} Nf6 {[%emt 0:00:07]} 2. c4 {[%emt 0:00:01]} e6 {[%emt 0:00:19]} 3. Nf3 {[%emt 0:00:53]} c5 {[%emt 0:00:11]} 4. d5 {[%emt 0:01:02]} exd5 {[%emt 0:00:54]} 5. cxd5 {[%emt 0:00:11]} d6 {[%emt 0:00:09]} 6. Nc3 {[%emt 0:00:06]} g6 {[%emt 0:00:10]} 7. e4 {[%emt 0:00:21]} Bg7 {[%emt 0:00:11]} 8. Bb5+ {[%emt 0:02:22]} Nbd7 {[%emt 0:01:26]} 9. O-O {[%emt 0:03:40]} O-O {[%emt 0:00:24]} 10. Bf4 {[%emt 0:04:02]} Qb6 {[%emt 0:03:00]} 11. Qc2 {[%emt 0:01:28]} Nh5 {[%emt 0:00:32]} 12. Be3 {[%emt 0:01:08]} Qc7 {[%emt 0:01:05]} 13. a4 {[%emt 0:08:00]} a6 {[%emt 0:00:14]} 14. Be2 {[%emt 0:00:20]} Nhf6 {[%emt 0:01:46]} 15. h3 {[%emt 0:01:19]} Re8 {[%emt 0:00:23]} 16. Nd2 {[%emt 0:02:42]} Rb8 {[%emt 0:00:56]} 17. a5 {[%emt 0:00:46]} b5 {[%emt 0:01:44]} 18. axb6 {[%emt 0:00:30]} Rxb6 {[%emt 0:00:05]} 19. Nc4 {[%emt 0:02:04]} Rb4 {[%emt 0:00:54]} 20. Bf4 {[%emt 0:07:20]} Bf8 {[%emt 0:00:19]} 21. Bd3 {[%emt 0:01:11]} Nb6 {[%emt 0:04:52]} 22. Na5 {[%emt 0:05:34]} Nfxd5 {[%emt 0:03:59]} 23. Bd2 {[%emt 0:02:54]} Nf6 {[%emt 0:01:31]} 24. Nd1 {[%emt 0:03:29]} Rd4 {[%emt 0:02:11]} 25. Bc3 {[%emt 0:00:43]} Rxd3 {[%emt 0:00:25]} 26. Qxd3 {[%emt 0:00:13]} Nxe4 {[%emt 0:00:27]} 27. Ne3 {[%emt 0:02:20]} Nxc3 {[%emt 0:01:48]} 28. bxc3 {[%emt 0:00:35]} Bg7 {[%emt 0:01:21]} 29. Ra3 {[%emt 0:05:30]} Rd8 {[%emt 0:02:23]} 30. Nd5 {[%emt 0:07:05]} Nxd5 {[%emt 0:00:25]} 31. Qxd5 {[%emt 0:00:03]} Bxc3 {[%emt 0:01:53]} 32. Rxc3 {[%emt 0:01:09]} Qxa5 {[%emt 0:00:18]} 33. Re3 {[%emt 0:04:12]} Qc7 {[%emt 0:06:17]} 34. Qg5 {[%emt 0:07:05]} Kg7 {[%emt 0:05:13]} 35. Re7 {[%emt 0:07:54]} Rd7 {[%emt 0:03:24]} 36. Re8 {[%emt 0:02:20]} Bb7 {[%emt 0:01:26]} 37. Rfe1 {[%emt 0:02:07]} d5 {[%emt 0:02:23]} 38. R1e7 {[%emt 0:06:05]} d4 {[%emt 0:03:49]} 39. Rxd7 {[%emt 0:03:42]} Qxd7 {[%emt 0:00:09]} 40. Qe5+ {[%emt 0:00:12]} Kh6 {[%emt 0:00:25]} 41. Re7 {[%emt 0:03:13]} Qd5 {[%emt 0:01:32]} 42. Qf4+ {[%emt 0:01:43]} Kg7 {[%emt 0:00:33]} 43. f3 {[%emt 0:00:08]} d3 {[%emt 0:04:06]} 44. Qd2 {[%emt 0:03:18]} Qd4+ {[%emt 0:00:39]} 45. Kf1 {[%emt 0:00:50]} Bc6 {[%emt 0:00:54]} 46. Rc7 {[%emt 0:00:39]} Bb5 0-1

[Event "19th IPCA WCC 2019"]
[Site "Ruzomberok"]
[Date "2019.07.06"]
[Round "9.11"]
[White "Wielecki, Zygmunt"]
[Black "Kozicz, Andrzej"]
[Result "1/2-1/2"]
[ECO "B28"]
[WhiteElo "2145"]
[BlackElo "1979"]
[Annotator "NA"]
[PlyCount "43"]
[EventDate "2019.06.28"]
[EventType "swiss"]
[EventCountry "SVK"]
[SourceTitle "playchess.com"]
[Source "ChessBase"]
[SourceQuality "1"]
[TimeControl "5400+30"]

1. e4 c5 2. Nf3 {[%emt 0:00:31]} a6 {[%emt 0:00:06]} 3. c4 {[%emt 0:00:43]} d6 {[%emt 0:00:11]} 4. d4 {[%emt 0:00:13]} cxd4 {[%emt 0:00:13]} 5. Nxd4 {[%emt 0:00:16]} e6 {[%emt 0:00:02]} 6. Nc3 {[%emt 0:00:21]} Nf6 {[%emt 0:00:05]} 7. Be2 {[%emt 0:00:18]} Be7 {[%emt 0:00:11]} 8. O-O {[%emt 0:00:14]} O-O 9. Be3 Bd7 {[%emt 0:01:48]} 10. Qd2 {[%emt 0:01:53]} Nc6 {[%emt 0:00:05]} 11. f3 {[%emt 0:00:31]} Rc8 {[%emt 0:01:04]} 12. Rfd1 {[%emt 0:00:42]} Nxd4 {[%emt 0:02:19]} 13. Bxd4 {[%emt 0:00:26]} e5 {[%emt 0:00:47]} 14. Be3 {[%emt 0:00:14]} Bc6 {[%emt 0:00:11]} 15. b4 {[%emt 0:02:54]} Kh8 16. a4 Rg8 17. b5 Bd7 18. a5 Be6 19. bxa6 bxa6 20. Nd5 Nxd5 21. cxd5 Bf6 22. Rab1 1/2-1/2

[Event "19th IPCA WCC 2019"]
[Site "Ruzomberok"]
[Date "2019.07.06"]
[Round "9.12"]
[White "Zicho, Anton"]
[Black "Zavarsky, Juraj"]
[Result "1/2-1/2"]
[ECO "B59"]
[WhiteElo "1662"]
[BlackElo "2000"]
[Annotator "NA"]
[PlyCount "169"]
[EventDate "2019.06.28"]
[EventType "swiss"]
[EventCountry "SVK"]
[SourceTitle "playchess.com"]
[Source "ChessBase"]
[SourceQuality "1"]
[TimeControl "5400+30"]

1. e4 {[%emt 0:00:00]} c5 {[%emt 0:00:00]} 2. Nf3 {[%emt 0:00:00]} Nc6 {[%emt 0:00:00]} 3. d4 {[%emt 0:00:33]} cxd4 {[%emt 0:00:03]} 4. Nxd4 {[%emt 0:00:22]} Nf6 {[%emt 0:00:21]} 5. Nc3 {[%emt 0:02:01]} d6 {[%emt 0:00:11]} 6. Be2 {[%emt 0:03:50]} e5 {[%emt 0:05:17]} 7. Nb3 {[%emt 0:06:39]} Be7 {[%emt 0:08:44]} 8. O-O {[%emt 0:02:55]} O-O {[%emt 0:00:59]} 9. Be3 {[%emt 0:03:47]} Be6 {[%emt 0:01:53]} 10. f3 {[%emt 0:11:46]} Na5 {[%emt 0:17:52]} 11. Qd3 {[%emt 0:06:48]} Nc4 {[%emt 0:01:38]} 12. Bc1 {[%emt 0:01:37]} Rc8 {[%emt 0:01:36]} 13. Nd1 {[%emt 0:03:14]} d5 {[%emt 0:10:27]} 14. exd5 {[%emt 0:02:46]} Nxd5 {[%emt 0:01:14]} 15. c3 {[%emt 0:00:47]} Qb6+ {[%emt 0:02:21]} 16. Kh1 {[%emt 0:01:14]} Rfd8 {[%emt 0:00:15]} 17. Qc2 {[%emt 0:03:03]} Nd6 {[%emt 0:07:07]} 18. Bd3 {[%emt 0:03:59]} g6 {[%emt 0:02:11]} 19. Qf2 {[%emt 0:02:20]} Qxf2 {[%emt 0:03:54]} 20. Nxf2 {[%emt 0:02:51]} f5 {[%emt 0:01:26]} 21. Re1 {[%emt 0:07:34]} Nf7 {[%emt 0:02:16]} 22. Kg1 {[%emt 0:06:04]} Bd7 {[%emt 0:03:23]} 23. Kf1 {[%emt 0:07:23]} Bh4 {[%emt 0:01:38]} 24. g3 {[%emt 0:00:59]} Bf6 {[%emt 0:00:16]} 25. Na5 {[%emt 0:03:02]} b6 {[%emt 0:01:59]} 26. Nc4 {[%emt 0:01:41]} Bc6 {[%emt 0:02:50]} 27. Be2 {[%emt 0:03:16]} Bb5 {[%emt 0:01:11]} 28. Ne3 {[%emt 0:00:37]} Bxe2+ {[%emt 0:01:08]} 29. Kxe2 {[%emt 0:00:57]} Ne7 {[%emt 0:01:42]} 30. Ng2 {[%emt 0:00:55]} Nd6 {[%emt 0:02:27]} 31. Rd1 {[%emt 0:04:02]} Kf7 {[%emt 0:01:12]} 32. Ne3 {[%emt 0:00:32]} h5 {[%emt 0:03:30]} 33. Nd5 {[%emt 0:00:14]} Nxd5 {[%emt 0:00:10]} 34. Rxd5 {[%emt 0:00:07]} Nc4 {[%emt 0:00:31]} 35. Rxd8 {[%emt 0:02:21]} Rxd8 {[%emt 0:00:02]} 36. b3 {[%emt 0:00:49]} Nd6 {[%emt 0:00:26]} 37. Bd2 {[%emt 0:00:40]} h4 {[%emt 0:01:04]} 38. Rc1 {[%emt 0:00:48]} Nb7 {[%emt 0:02:05]} 39. c4 {[%emt 0:00:33]} Be7 {[%emt 0:02:37]} 40. Nd3 {[%emt 0:00:55]} Ke6 {[%emt 0:00:18]} 41. Be3 {[%emt 0:01:05]} hxg3 {[%emt 0:00:32]} 42. hxg3 {[%emt 0:00:14]} Rh8 {[%emt 0:00:08]} 43. Rf1 {[%emt 0:01:16]} Bd6 {[%emt 0:02:00]} 44. Bg5 {[%emt 0:01:15]} Rh3 {[%emt 0:01:30]} 45. Rg1 {[%emt 0:01:05]} Rh2+ {[%emt 0:01:06]} 46. Nf2 {[%emt 0:00:20]} f4 {[%emt 0:02:12]} 47. gxf4 {[%emt 0:00:36]} exf4 {[%emt 0:00:17]} 48. Kf1 {[%emt 0:00:40]} Bc5 {[%emt 0:00:41]} 49. Rg2 {[%emt 0:00:14]} Rxg2 {[%emt 0:00:49]} 50. Kxg2 {[%emt 0:00:02]} Kf5 {[%emt 0:01:19]} 51. Ne4 {[%emt 0:00:34]} Bb4 {[%emt 0:01:21]} 52. Bh4 {[%emt 0:00:30]} Na5 {[%emt 0:01:05]} 53. Kf2 {[%emt 0:00:39]} Nc6 {[%emt 0:00:13]} 54. Bf6 Ne5 55. Ke2 {[%emt 0:02:14]} Nd7 {[%emt 0:02:02]} 56. Bb2 {[%emt 0:00:10]} g5 {[%emt 0:00:13]} 57. a3 {[%emt 0:00:34]} Be7 {[%emt 0:00:13]} 58. Nf2 {[%emt 0:00:51]} Nf6 {[%emt 0:00:34]} 59. Nd3 {[%emt 0:00:57]} Nh5 {[%emt 0:01:04]} 60. Kf2 {[%emt 0:00:26]} Bd6 {[%emt 0:01:00]} 61. b4 {[%emt 0:00:38]} Nf6 {[%emt 0:00:33]} 62. Bd4 {[%emt 0:00:31]} Nd7 {[%emt 0:00:32]} 63. Ke2 {[%emt 0:00:11]} g4 {[%emt 0:00:38]} 64. fxg4+ {[%emt 0:00:45]} Kxg4 {[%emt 0:00:02]} 65. Kf2 {[%emt 0:00:18]} Be7 {[%emt 0:00:27]} 66. Ne5+ {[%emt 0:00:25]} Nxe5 {[%emt 0:00:11]} 67. Bxe5 {[%emt 0:00:11]} Bh4+ {[%emt 0:00:16]} 68. Kf1 {[%emt 0:00:03]} Kf5 {[%emt 0:02:16]} 69. Bb8 {[%emt 0:00:23]} a6 {[%emt 0:00:02]} 70. Bc7 {[%emt 0:00:17]} b5 {[%emt 0:00:06]} 71. c5 {[%emt 0:00:36]} Bf6 {[%emt 0:00:46]} 72. Ba5 {[%emt 0:00:33]} Ke6 {[%emt 0:00:37]} 73. Kf2 {[%emt 0:00:18]} Bb2 {[%emt 0:00:43]} 74. Kf3 {[%emt 0:00:02]} Bxa3 {[%emt 0:00:37]} 75. Kxf4 {[%emt 0:00:22]} Kd5 {[%emt 0:00:06]} 76. Ke3 {[%emt 0:00:11]} Bb2 {[%emt 0:01:14]} 77. Kd3 {[%emt 0:00:07]} Bf6 {[%emt 0:01:07]} 78. Bb6 {[%emt 0:00:12]} Be5 {[%emt 0:00:19]} 79. Bd8 {[%emt 0:00:15]} Bb2 {[%emt 0:00:22]} 80. Ba5 {[%emt 0:00:12]} Bd4 {[%emt 0:00:31]} 81. Bb6 {[%emt 0:00:02]} Bg1 {[%emt 0:00:12]} 82. Kc3 {[%emt 0:00:32]} Kc6 {[%emt 0:00:27]} 83. Ba5 {[%emt 0:00:07]} Bxc5 {[%emt 0:00:15]} 84. bxc5 Kxc5 85. Kb3 {[%emt 0:01:09]} 1/2-1/2